fUSD/lending_fUSD_20250313
["ID","MTS","AMOUNT","RATE_DAILY","PERIOD"]
[356111888,1741909928610,-732.74,0.00025518,3]
[356111889,1741909928620,-685.17,0.00025518,3]
[356111890,1741909928630,-636.55,0.00025518,3]
[356111891,1741909928639,-500.0,0.00025518,3]
[356111892,1741909928649,-500.0,0.00025518,3]
[356111893,1741909928658,-666.39,0.00025518,3]
[356111894,1741909928667,-1136.63,0.00025518,3]
[356111895,1741909928677,-3568.36,0.00025519,3]
[356111896,1741909928687,-2980.86,0.00025519,3]
[356111897,1741909928696,-1531.97,0.00025519,3]
[356111898,1741909928706,-767.63,0.00025519,3]
[356111899,1741909928715,-638.89,0.00025519,3]
[356111900,1741909928724,-866.68,0.00025519,3]
[356111901,1741909928734,-1909.43,0.00025519,3]
[356111902,1741909928743,-957.65,0.00025519,3]
[356111903,1741909928752,-705.12,0.00025519,3]
[356111904,1741909928762,-581.8,0.00025519,3]
[356111905,1741909928772,-1223.35,0.00025519,3]
[356111906,1741909928782,-2382.43,0.00025519,3]
[356111907,1741909928792,-1633.72,0.00025519,3]
[356111908,1741909928801,-1670.95,0.00025519,3]
[356111909,1741909928811,-1726.02,0.00025519,3]
[356111910,1741909928821,-1847.97,0.00025519,3]
[356111911,1741909928830,-233.05,0.0002552,3]
[356111912,1741909928839,-1821.49,0.0002552,3]
[356111913,1741909928848,-500.0,0.0002552,3]
[356111914,1741909928858,-534.21,0.0002552,3]
[356111915,1741909928867,-721.07,0.0002552,3]
[356111916,1741909928876,-835.2,0.0002552,3]
[356111917,1741909928885,-581.8262969,0.0002552,3]
[356111918,1741909928895,-640.39,0.0002552,3]
[356111919,1741909928904,-500.0,0.0002552,3]
[356111920,1741909928914,-1649.68,0.0002552,3]
[356111921,1741909928924,-500.0,0.0002552,3]
[356111922,1741909928933,-602.71,0.0002552,3]
[356111923,1741909928942,-500.0,0.0002552,3]
[356111924,1741909928952,-500.0,0.0002552,3]
[356111925,1741909928961,-717.27,0.0002552,3]
[356111926,1741909928970,-938.73,0.0002552,3]
[356111927,1741909928980,-1058.89,0.0002552,3]
[356111928,1741909928989,-942.53,0.0002552,3]
[356111929,1741909928998,-578.57,0.0002552,3]
[356111930,1741909929008,-909.28,0.0002552,3]
[356111931,1741909929018,-618.61,0.0002552,3]
[356111932,1741909929028,-472.75,0.0002552,3]
[356111933,1741909929038,-500.0,0.0002552,3]
[356111934,1741909929047,-610.2,0.0002552,3]
[356111935,1741909929056,-500.0,0.0002552,3]
[356111936,1741909929065,-500.0,0.0002552,3]
[356111937,1741909929075,-500.0,0.0002552,3]
[356111938,1741909929084,-500.0,0.0002552,3]
[356111939,1741909929093,-1597.02,0.0002552,3]
[356111940,1741909929103,-1208.71,0.0002552,3]
[356111941,1741909929112,-295.70520834,0.0002552,3]
[356111942,1741909929121,-961.24,0.0002552,3]
[356111943,1741909929131,-500.0,0.0002552,3]
[356111944,1741909929140,-500.0,0.0002552,3]
[356111945,1741909929150,-945.98,0.0002552,3]
[356111946,1741909929159,-648.05534369,0.0002552,3]
[356111947,1741909929168,-599.05,0.0002552,3]
[356111948,1741909929178,-1322.8,0.0002552,3]
[356111949,1741909929187,-500.0,0.0002552,3]
[356111950,1741909929196,-500.0,0.0002552,3]
[356111951,1741909929206,-524.04,0.0002552,3]
[356111952,1741909929215,-500.0,0.0002552,3]
[356111953,1741909929224,-1064.48,0.0002552,3]
[356111954,1741909929234,-1162.99,0.0002552,3]
[356111955,1741909929243,-2009.2,0.0002552,3]
[356111956,1741909929254,-1104.79,0.0002552,3]
[356111957,1741909929265,-1347.3,0.0002552,2]
[356111958,1741909929275,-1045.89,0.0002552,3]
[356111959,1741909929285,-1177.15,0.0002552,3]
[356111960,1741909929294,-1278.64,0.0002552,3]
[356111961,1741909929305,-1471.45,0.0002552,3]
[356111962,1741909929314,-605.65,0.0002552,3]
[356111963,1741909929324,-625.24468671,0.0002552,3]
[356111964,1741909929333,-500.0,0.0002552,3]
[356111965,1741909929343,-1032.31,0.0002552,3]
[356111966,1741909929352,-516.89,0.0002552,3]
[356111967,1741909929361,-1030.03,0.0002552,3]
[356111968,1741909929370,-500.0,0.0002552,3]
[356111969,1741909929379,-430.92975395,0.0002552,3]
[356111970,1741909929388,-520.87,0.0002552,3]
[356111971,1741909929397,-583.44,0.0002552,3]
[356111972,1741909929407,-155.63095746,0.0002552,3]
[356111973,1741909929417,-531.32,0.0002552,3]
[356111974,1741909929426,-549.11,0.0002552,3]
[356111975,1741909929435,-500.0,0.0002552,3]
[356111976,1741909929444,-665.05,0.0002552,3]
[356111977,1741909929454,-500.0,0.0002552,2]
[356111978,1741909929466,-1886.33,0.0002552,3]
[356111979,1741909929476,-500.0,0.0002552,3]
[356111980,1741909929485,-1603.3,0.0002552,3]
[356111981,1741909929495,-500.0,0.0002552,3]
[356111982,1741909929504,-1399.34,0.0002552,3]
[356111983,1741909929515,-507.55,0.0002552,3]
[356111984,1741909929524,-363.2286445,0.0002552,3]
[356111985,1741909929534,-500.0,0.0002552,3]
[356111986,1741909929543,-568.98945141,0.0002552,3]
[356111987,1741909929553,-1162.37,0.0002552,3]
[356111988,1741909929563,-503.04,0.0002552,3]
[356111989,1741909929572,-637.46,0.0002552,3]
[356111990,1741909929581,-500.0,0.0002552,3]
[356111991,1741909929590,-500.0,0.0002552,3]
[356111992,1741909929599,-500.0,0.0002552,3]
[356111993,1741909929608,-1799.26,0.0002552,3]
[356111994,1741909929617,-1038.47,0.0002552,3]
[356111995,1741909929626,-500.0,0.0002552,3]
[356111996,1741909929635,-500.0,0.0002552,3]
[356111997,1741909929644,-1488.89,0.0002552,3]
[356111998,1741909929653,-509.79,0.0002552,3]
[356111999,1741909929663,-1529.19,0.0002552,3]
[356112000,1741909929671,-1146.19,0.0002552,3]
[356112001,1741909929680,-1616.56,0.0002552,3]
[356112002,1741909929689,-1230.07,0.0002552,3]
[356112003,1741909929698,-500.0,0.0002552,3]
[356112004,1741909929707,-503.06,0.0002552,3]
[356112005,1741909929716,-828.77,0.0002552,3]
[356112006,1741909929725,-566.59,0.0002552,3]
[356112007,1741909929734,-766.89,0.0002552,3]
[356112008,1741909929743,-877.86,0.0002552,3]
[356112009,1741909929751,-1515.34,0.0002552,3]
[356112010,1741909929762,-500.0,0.0002552,3]
[356112011,1741909929772,-974.37,0.0002552,3]
[356112012,1741909929781,-637.9,0.0002552,3]
[356112013,1741909929790,-878.52,0.0002552,3]
[356112014,1741909929800,-500.0,0.0002552,3]
[356112015,1741909929809,-581.67,0.0002552,3]
[356112016,1741909929819,-1951.21,0.0002552,3]
[356112017,1741909929828,-500.0,0.0002552,3]
[356112018,1741909929838,-2023.2,0.0002552,3]
[356112019,1741909929847,-2022.67,0.0002552,3]
[356112020,1741909929856,-1071.52,0.0002552,3]
[356112021,1741909929867,-1319.48,0.0002552,3]
[356112022,1741909929876,-1318.79,0.0002552,3]
[356112023,1741909929886,-817.82,0.0002552,3]
[356112024,1741909929895,-1858.28,0.0002552,3]
[356112025,1741909929905,-500.0,0.0002552,3]
[356112026,1741909929914,-500.0,0.0002552,3]
[356112027,1741909929923,-1341.33,0.0002552,3]
[356112028,1741909929933,-500.0,0.0002552,3]
[356112029,1741909929942,-500.0,0.0002552,3]
[356112030,1741909929952,-1345.3,0.0002552,3]
[356112031,1741909929961,-500.0,0.0002552,2]
[356112032,1741909929970,-1005.07,0.0002552,3]
[356112033,1741909929980,-2009.8,0.0002552,3]
[356112034,1741909929989,-500.0,0.0002552,3]
[356112035,1741909929999,-500.0,0.0002552,3]
[356112036,1741909930008,-761.68,0.0002552,3]
[356112037,1741909930019,-1194.67,0.0002552,3]
[356112038,1741909930029,-1173.33,0.0002552,3]
[356112039,1741909930038,-3283.37,0.0002552,3]
[356112040,1741909930047,-500.0,0.0002552,3]
[356112041,1741909930057,-647.14,0.0002552,3]
[356112042,1741909930066,-610.98,0.0002552,3]
[356112043,1741909930076,-1389.09,0.0002552,3]
[356112044,1741909930085,-558.82,0.0002552,3]
[356112045,1741909930095,-535.09,0.0002552,3]
[356112046,1741909930104,-1705.22,0.0002552,3]
[356112047,1741909930113,-792.15,0.0002552,3]
[356112048,1741909930122,-1894.67,0.0002552,3]
[356112049,1741909930131,-1930.42,0.0002552,3]
[356112050,1741909930141,-573.45,0.0002552,3]
[356112051,1741909930150,-4252.22,0.0002552,3]
[356112052,1741909930160,-1350.01,0.0002552,3]
[356112053,1741909930170,-957.24,0.0002552,3]
[356112054,1741909930180,-813.96,0.0002552,3]
[356112055,1741909930190,-500.0,0.0002552,3]
[356112056,1741909930200,-500.0,0.0002552,3]
[356112057,1741909930209,-666.36,0.0002552,3]
[356112058,1741909930219,-1214.54,0.0002552,3]
[356112059,1741909930229,-659.78,0.0002552,3]
[356112060,1741909930238,-740.67,0.0002552,3]
[356112061,1741909930247,-1011.7,0.0002552,3]
[356112062,1741909930258,-1446.01,0.0002552,3]
[356112063,1741909930268,-509.81,0.0002552,3]
[356112064,1741909930277,-500.0,0.0002552,3]
[356112065,1741909930287,-506.61,0.0002552,3]
[356112066,1741909930296,-1624.15,0.0002552,3]
[356112067,1741909930306,-1714.12,0.0002552,3]
[356112068,1741909930316,-1542.57,0.0002552,3]
[356112069,1741909930325,-1453.97,0.0002552,3]
[356112070,1741909930335,-679.28,0.0002552,3]
[356112071,1741909930344,-511.82,0.0002552,3]
[356112072,1741909930354,-732.6,0.0002552,3]
[356112073,1741909930363,-509.45,0.0002552,3]
[356112074,1741909930373,-528.56,0.0002552,3]
[356112075,1741909930382,-803.83,0.0002552,3]
[356112076,1741909930391,-500.0,0.0002552,3]
[356112077,1741909930401,-412.62676707,0.0002552,3]
[356112078,1741909930411,-500.0,0.0002552,3]
[356112079,1741909930420,-1621.13,0.0002552,3]
[356112080,1741909930430,-684.37,0.0002552,3]
[356112081,1741909930440,-500.0,0.0002552,3]
[356112082,1741909930450,-3776.5,0.0002552,3]
[356112083,1741909930464,-500.0,0.0002552,3]
[356112084,1741909930473,-500.0,0.0002552,3]
[356112085,1741909930483,-568.39,0.0002552,3]
[356112086,1741909930494,-1817.75,0.0002552,3]
[356112087,1741909930503,-1602.7,0.0002552,3]
[356112088,1741909930512,-500.0,0.0002552,3]
[356112089,1741909930523,-938.17,0.0002552,3]
[356112090,1741909930532,-1921.94,0.0002552,3]
[356112091,1741909930543,-728.56,0.0002552,3]
[356112092,1741909930553,-500.0,0.0002552,3]
[356112093,1741909930562,-515.11,0.0002552,3]
[356112094,1741909930571,-500.0,0.0002552,3]
[356112095,1741909930582,-519.89,0.0002552,3]
[356112096,1741909930591,-547.45,0.0002552,3]
[356112097,1741909930600,-1144.38,0.0002552,3]
[356112098,1741909930610,-1019.22,0.0002552,3]
[356112099,1741909930620,-501.97,0.0002552,3]
[356112100,1741909930629,-742.8,0.0002552,3]
[356112101,1741909930639,-500.0,0.0002552,3]
[356112102,1741909930648,-947.29,0.0002552,3]
[356112103,1741909930658,-500.0,0.0002552,3]
[356112104,1741909930667,-1068.83,0.0002552,3]
[356112105,1741909930678,-1182.53,0.0002552,3]
[356112106,1741909930687,-1076.88,0.0002552,3]
[356112107,1741909930697,-1771.49,0.00025546,3]
[356112108,1741909930707,-846.5,0.00025546,2]
[356112109,1741909930717,-1290.76,0.00025546,3]
[356112110,1741909930727,-559.65,0.00025546,3]
[356112111,1741909930737,-1582.8,0.00025546,3]
[356112112,1741909930747,-500.0,0.00025546,3]
[356112113,1741909930756,-628.37,0.00025546,3]
[356112114,1741909930766,-3568.36,0.00025546,3]
[356112115,1741909930776,-534.48,0.00025546,3]
[356112116,1741909930785,-1267.72,0.00025546,3]
[356112117,1741909930795,-1652.9,0.00025546,3]
[356112118,1741909930804,-2343.56,0.00025546,3]
[356112119,1741909930814,-534.22,0.00025546,3]
[356112120,1741909930823,-855.84,0.00025546,3]
[356112121,1741909930834,-2980.86,0.00025546,3]
[356112122,1741909930843,-1751.29,0.00025546,3]
[356112123,1741909930853,-521.41,0.00025546,3]
[356112124,1741909930862,-1817.04,0.00025546,3]
[356112125,1741909930872,-1529.79,0.00025546,3]
[356112126,1741909930882,-1531.97,0.00025546,3]
[356112127,1741909930892,-626.51,0.00025546,3]
[356112128,1741909930902,-1836.79,0.00025546,3]
[356112129,1741909930911,-647.08,0.00025546,3]
[356112130,1741909930921,-767.63,0.00025546,3]
[356112131,1741909930930,-2784.94,0.00025546,3]
[356112132,1741909930940,-972.39,0.00025546,3]
[356112133,1741909930950,-950.08,0.00025546,3]
[356112134,1741909930959,-1153.097042,0.00025546,3]
[356112135,1741909930968,-663.57,0.00025546,3]
[356112136,1741909930978,-638.89,0.00025546,3]
[356112137,1741909930987,-1612.27,0.00025546,3]
[356112138,1741909930996,-366.121728,0.00025546,3]
[356112139,1741909931006,-1194.86,0.00025546,3]
[356112140,1741909931017,-866.68,0.00025546,3]
[356112141,1741909931027,-542.19,0.00025546,3]
[356112142,1741909931037,-153.80157,0.00025546,3]
[356112143,1741909931047,-1909.43,0.00025546,3]
[356112144,1741909931056,-632.82,0.00025546,3]
[356112145,1741909931066,-503.16,0.00025546,3]
[356112146,1741909931076,-152.872762,0.00025546,3]
[356112147,1741909931085,-957.65,0.00025546,3]
[356112148,1741909931095,-686.97,0.00025546,3]
[356112149,1741909931105,-1718.94,0.00025546,3]
[356112150,1741909931115,-593.31,0.00025546,3]
[356112151,1741909931124,-1023.55,0.00025546,3]
[356112152,1741909931134,-1537.99,0.00025546,3]
[356112153,1741909931145,-705.12,0.00025546,3]
[356112154,1741909931155,-2081.77,0.00025546,3]
[356112155,1741909931165,-595.3,0.00025546,3]
[356112156,1741909931175,-500.0,0.00025546,3]
[356112157,1741909931185,-581.8,0.00025546,3]
[356112158,1741909931195,-2182.31,0.00025546,3]
[356112159,1741909931204,-1551.28,0.00025546,3]
[356112160,1741909931213,-1223.35,0.00025546,3]
[356112161,1741909931223,-705.21,0.00025546,3]
[356112162,1741909931233,-580.79421868,0.00025546,3]
[356112163,1741909931243,-500.0,0.00025546,3]
[356112164,1741909931253,-513.62,0.00025546,3]
[356112165,1741909931263,-575.64,0.00025546,3]
[356112166,1741909931273,-2382.43,0.00025546,3]
[356112167,1741909931283,-1703.64,0.00025546,3]
[356112168,1741909931292,-500.0,0.00025546,3]
[356112169,1741909931301,-500.0,0.00025546,3]
[356112170,1741909931311,-1670.95,0.00025546,3]
[356112171,1741909931320,-1633.72,0.00025546,3]
[356112172,1741909931329,-558.1018363,0.00025546,3]
[356112173,1741909931340,-3566.18,0.00025546,2]
[356112174,1741909931349,-2647.01,0.00025546,3]
[356112175,1741909931358,-694.85,0.00025546,3]
[356112176,1741909931368,-1632.96,0.00025546,3]
[356112177,1741909931378,-1051.26,0.00025546,3]
[356112178,1741909931387,-703.55,0.00025546,3]
[356112179,1741909931397,-1726.02,0.00025546,3]
[356112180,1741909931407,-1847.97,0.00025546,3]
[356112181,1741909931416,-500.0,0.00025546,3]
[356112182,1741909931426,-1122.02,0.00025546,3]
[356112183,1741909931436,-1030.95,0.00025546,3]
[356112184,1741909931446,-547.84,0.00025546,3]
[356112185,1741909931459,-732.74,0.00025546,3]
[356112186,1741909931469,-685.17,0.00025546,3]
[356112187,1741909931479,-636.55,0.00025546,3]
[356112188,1741909931488,-500.0,0.00025546,3]
[356112189,1741909931498,-500.0,0.00025546,3]
[356112190,1741909931508,-666.39,0.00025546,3]
[356112191,1741909931518,-1136.63,0.00025546,3]
[356112192,1741909931527,-151.0,0.00025547,7]
[356112193,1741909931537,-163.323963,0.00025547,7]
[356112194,1741909931547,-163.323963,0.00025547,7]
[356112195,1741909931556,-1821.49,0.00025547,3]
[356112196,1741909931565,-500.0,0.00025547,3]
[356112197,1741909931575,-534.21,0.00025547,3]
[356112198,1741909931584,-721.07,0.00025547,3]
[356112199,1741909931594,-835.2,0.00025547,3]
[356112200,1741909931603,-640.39,0.00025547,3]
[356112201,1741909931612,-500.0,0.00025547,3]
[356112202,1741909931622,-1649.68,0.00025547,3]
[356112203,1741909931631,-500.0,0.00025547,3]
[356112204,1741909931641,-602.71,0.00025547,3]
[356112205,1741909931650,-500.0,0.00025547,3]
[356112206,1741909931660,-571.75,0.00025547,3]
[356112207,1741909931670,-717.27,0.00025547,3]
[356112208,1741909931680,-938.73,0.00025547,3]
[356112209,1741909931690,-4207.041718,0.00025547,7]
[356112210,1741909931701,-1058.89,0.00025547,3]
[356112211,1741909931710,-4207.041718,0.00025547,7]
[356112212,1741909931720,-942.53,0.00025547,3]
[356112213,1741909931729,-578.57,0.00025547,3]
[356112214,1741909931739,-909.28,0.00025547,3]
[356112215,1741909931748,-618.61,0.00025547,3]
[356112216,1741909931757,-514.68,0.00025547,3]
[356112217,1741909931979,-151.0,0.00025547,7]
[356112218,1741909931990,-610.2,0.00025547,3]
[356112219,1741909932000,-500.0,0.00025547,3]
[356112220,1741909932010,-561.32,0.00025547,3]
[356112221,1741909932021,-546.36,0.00025547,3]
[356112222,1741909932031,-467.85,0.00025547,3]
[356112223,1741909932040,-1597.02,0.00025547,3]
[356112224,1741909932050,-1208.71,0.00025547,3]
[356112225,1741909932059,-961.24,0.00025547,3]
[356112226,1741909932069,-500.0,0.00025547,3]
[356112227,1741909932078,-500.0,0.00025547,3]
[356112228,1741909932087,-945.98,0.00025547,3]
[356112229,1741909932097,-599.05,0.00025547,3]
[356112230,1741909932107,-500.0,0.00025547,3]
[356112231,1741909932116,-500.0,0.00025547,3]
[356112232,1741909932126,-1322.8,0.00025547,3]
[356112233,1741909932135,-524.04,0.00025547,3]
[356112234,1741909932145,-500.0,0.00025547,3]
[356112235,1741909932155,-1064.48,0.00025547,3]
[356112236,1741909932164,-1162.99,0.00025547,3]
[356112237,1741909932174,-2009.2,0.00025547,3]
[356112238,1741909932183,-1104.79,0.00025547,3]
[356112239,1741909932194,-1347.3,0.00025547,2]
[356112240,1741909932203,-1045.89,0.00025547,3]
[356112241,1741909932213,-1177.15,0.00025547,3]
[356112242,1741909932223,-1278.64,0.00025547,3]
[356112243,1741909932232,-1471.45,0.00025547,3]
[356112244,1741909932242,-523.86,0.00025547,3]
[356112245,1741909932252,-1032.31,0.00025547,3]
[356112246,1741909932262,-516.89,0.00025547,3]
[356112247,1741909932272,-1030.03,0.00025547,3]
[356112248,1741909932281,-500.0,0.00025547,3]
[356112249,1741909932290,-583.44,0.00025547,3]
[356112250,1741909932299,-520.87,0.00025547,3]
[356112251,1741909932309,-531.32,0.00025547,3]
[356112252,1741909932319,-549.11,0.00025547,3]
[356112253,1741909932328,-512.2694945,0.00025547,3]
[356112254,1741909932338,-665.05,0.00025547,3]
[356112255,1741909932347,-500.0,0.00025547,2]
[356112256,1741909932356,-1886.33,0.00025547,3]
[356112257,1741909932365,-500.0,0.00025547,3]
[356112258,1741909932375,-1603.3,0.00025547,3]
[356112259,1741909932385,-500.0,0.00025547,3]
[356112260,1741909932394,-1399.34,0.00025547,3]
[356112261,1741909932403,-507.55,0.00025547,3]
[356112262,1741909932413,-500.0,0.00025547,3]
[356112263,1741909932423,-1162.37,0.00025547,3]
[356112264,1741909932432,-503.04,0.00025547,3]
[356112265,1741909932442,-637.46,0.00025547,3]
[356112266,1741909932453,-500.0,0.00025547,3]
[356112267,1741909932462,-571.8,0.00025547,3]
[356112268,1741909932471,-500.0,0.00025547,3]
[356112269,1741909932481,-1799.26,0.00025547,3]
[356112270,1741909932491,-1038.47,0.00025547,3]
[356112271,1741909932500,-500.0,0.00025547,3]
[356112272,1741909932509,-500.0,0.00025547,3]
[356112273,1741909932519,-1488.89,0.00025547,3]
[356112274,1741909932529,-509.79,0.00025547,3]
[356112275,1741909932539,-1529.19,0.00025547,3]
[356112276,1741909932548,-1146.19,0.00025547,3]
[356112277,1741909932557,-1616.56,0.00025547,3]
[356112278,1741909932567,-1230.07,0.00025547,3]
[356112279,1741909932576,-500.0,0.00025547,3]
[356112280,1741909932586,-503.06,0.00025547,3]
[356112281,1741909932595,-828.77,0.00025547,3]
[356112282,1741909932605,-566.59,0.00025547,3]
[356112283,1741909932614,-766.89,0.00025547,3]
[356112284,1741909932624,-877.86,0.00025547,3]
[356112285,1741909932633,-1515.34,0.00025547,3]
[356112286,1741909932644,-500.0,0.00025547,3]
[356112287,1741909932654,-974.37,0.00025547,3]
[356112288,1741909932671,-637.9,0.00025547,3]
[356112289,1741909932681,-878.52,0.00025547,3]
[356112290,1741909932691,-500.0,0.00025547,3]
[356112291,1741909932701,-581.67,0.00025547,3]
[356112292,1741909932712,-1951.21,0.00025547,3]
[356112293,1741909932722,-500.0,0.00025547,3]
[356112294,1741909932731,-2023.2,0.00025547,3]
[356112295,1741909932741,-2022.67,0.00025547,3]
[356112296,1741909932750,-1071.52,0.00025547,3]
[356112297,1741909932760,-1319.48,0.00025547,3]
[356112298,1741909932771,-1318.79,0.00025547,3]
[356112299,1741909932781,-817.82,0.00025547,3]
[356112300,1741909932791,-1858.28,0.00025547,3]
[356112301,1741909932802,-501.68,0.00025547,3]
[356112302,1741909932812,-1341.33,0.00025547,3]
[356112303,1741909932822,-500.0,0.00025547,3]
[356112304,1741909932832,-1345.3,0.00025547,3]
[356112305,1741909932843,-500.0,0.00025547,2]
[356112306,1741909932853,-1005.07,0.00025547,3]
[356112307,1741909932863,-2009.8,0.00025547,3]
[356112308,1741909932873,-500.0,0.00025547,3]
[356112309,1741909932883,-500.0,0.00025547,3]
[356112310,1741909932893,-761.68,0.00025547,3]
[356112311,1741909932903,-1194.67,0.00025547,3]
[356112312,1741909932913,-1173.33,0.00025547,3]
[356112313,1741909932923,-3283.37,0.00025547,3]
[356112314,1741909932934,-647.14,0.00025547,3]
[356112315,1741909932944,-500.0,0.00025547,3]
[356112316,1741909932954,-610.98,0.00025547,3]
[356112317,1741909932964,-1389.09,0.00025547,3]
[356112318,1741909932974,-558.82,0.00025547,3]
[356112319,1741909932984,-535.09,0.00025547,3]
[356112320,1741909932994,-1705.22,0.00025547,3]
[356112321,1741909933004,-792.15,0.00025547,3]
[356112322,1741909933014,-1894.67,0.00025547,3]
[356112323,1741909933024,-1930.42,0.00025547,3]
[356112324,1741909933035,-573.45,0.00025547,3]
[356112325,1741909933044,-4252.22,0.00025547,3]
[356112326,1741909933055,-1350.01,0.00025547,3]
[356112327,1741909933065,-957.24,0.00025547,3]
[356112328,1741909933075,-813.96,0.00025547,3]
[356112329,1741909933085,-500.0,0.00025547,3]
[356112330,1741909933095,-666.36,0.00025547,3]
[356112331,1741909933105,-465.42816676,0.00025547,3]
[356112332,1741909933115,-1214.54,0.00025547,3]
[356112333,1741909933126,-659.78,0.00025547,3]
[356112334,1741909933136,-740.67,0.00025547,3]
[356112335,1741909933146,-1011.7,0.00025547,3]
[356112336,1741909933157,-1446.01,0.00025547,3]
[356112337,1741909933167,-509.81,0.00025547,3]
[356112338,1741909933177,-500.0,0.00025547,3]
[356112339,1741909933186,-506.61,0.00025547,3]
[356112340,1741909933196,-1624.15,0.00025547,3]
[356112341,1741909933206,-1714.12,0.00025547,3]
[356112342,1741909933215,-1542.57,0.00025547,3]
[356112343,1741909933226,-1453.97,0.00025547,3]
[356112344,1741909933236,-679.28,0.00025547,3]
[356112345,1741909933246,-511.82,0.00025547,3]
[356112346,1741909933257,-732.6,0.00025547,3]
[356112347,1741909933267,-509.45,0.00025547,3]
[356112348,1741909933277,-528.56,0.00025547,3]
[356112349,1741909933287,-803.83,0.00025547,3]
[356112350,1741909933296,-500.0,0.00025547,3]
[356112351,1741909933307,-500.0,0.00025547,3]
[356112352,1741909933317,-1621.13,0.00025547,3]
[356112353,1741909933327,-684.37,0.00025547,3]
[356112354,1741909933337,-500.0,0.00025547,3]
[356112355,1741909933347,-3776.5,0.00025547,3]
[356112356,1741909933357,-500.0,0.00025547,3]
[356112357,1741909933367,-500.0,0.00025547,3]
[356112358,1741909933377,-568.39,0.00025547,3]
[356112359,1741909933389,-1817.75,0.00025547,3]
[356112360,1741909933399,-1602.7,0.00025547,3]
[356112361,1741909933408,-500.0,0.00025547,3]
[356112362,1741909933417,-938.17,0.00025547,3]
[356112363,1741909933428,-1921.94,0.00025547,3]
[356112364,1741909933438,-728.56,0.00025547,3]
[356112365,1741909933447,-500.0,0.00025547,3]
[356112366,1741909933458,-515.11,0.00025547,3]
[356112367,1741909933468,-519.89,0.00025547,3]
[356112368,1741909933479,-547.45,0.00025547,3]
[356112369,1741909933489,-1144.38,0.00025547,3]
[356112370,1741909933500,-1019.22,0.00025547,3]
[356112371,1741909933510,-742.8,0.00025547,3]
[356112372,1741909933520,-501.97,0.00025547,3]
[356112373,1741909933530,-500.0,0.00025547,3]
[356112374,1741909933540,-947.29,0.00025547,3]
[356112375,1741909933551,-500.0,0.00025547,3]
[356112376,1741909933560,-1068.83,0.00025547,3]
[356112377,1741909933570,-1182.53,0.00025547,3]
[356112378,1741909933580,-1076.88,0.00025547,3]
[356112379,1741909933590,-1771.49,0.00025573,3]
[356112380,1741909933600,-1290.76,0.00025573,3]
[356112381,1741909933609,-559.65,0.00025573,3]
[356112382,1741909933619,-1582.8,0.00025573,3]
[356112383,1741909933629,-500.0,0.00025573,3]
[356112384,1741909933638,-628.37,0.00025573,3]
[356112385,1741909933648,-3568.36,0.00025573,3]
[356112386,1741909933657,-534.48,0.00025573,3]
[356112387,1741909933667,-1267.72,0.00025573,3]